bitfinex/quotes_BTCUSD_20250218
["timestamp","ask_amount","ask_price","bid_price","bid_amount"]
[1739901612691,6.07722724,94336.0,94335.0,4.64133586]
[1739901612898,6.76774223,94336.0,94335.0,4.64133586]
[1739901613297,4.83594223,94336.0,94335.0,2.70953586]
[1739901613517,4.83594223,94336.0,94335.0,0.24734276]
[1739901613518,3.58134223,94336.0,94335.0,0.24734276]
[1739901613729,3.59796659,94336.0,94333.0,0.0015]
[1739901613933,3.59796659,94336.0,94326.0,2.39235405]
[1739901613934,0.41370937,94327.0,94326.0,2.39235405]
[1739901614116,3.90925696,94327.0,94326.0,0.20158719]
[1739901614319,0.52365634,94318.0,94317.0,4.92806424]
[1739901614669,3.40535514,94318.0,94317.0,4.92806424]
[1739901614883,3.63365514,94318.0,94317.0,4.92806424]
[1739901615271,3.84413514,94318.0,94317.0,4.92806424]
[1739901615518,3.89741684,94318.0,94317.0,4.92806424]
[1739901615937,3.93295727,94318.0,94317.0,4.92806424]
[1739901616152,3.93295727,94318.0,94317.0,4.53164928]
[1739901616362,3.89741684,94318.0,94317.0,4.53164928]
[1739901616567,3.90441684,94318.0,94317.0,4.53164928]
[1739901616774,3.93295727,94318.0,94317.0,4.53164928]
[1739901617187,3.93295727,94318.0,94317.0,4.38125916]
[1739901617397,3.93295727,94318.0,94317.0,4.38035916]
[1739901617598,3.93295727,94318.0,94317.0,3.66446716]
[1739901617804,3.92595727,94318.0,94317.0,2.94857516]
[1739901618219,4.60384932,94318.0,94317.0,2.94857516]
[1739901618421,4.57530889,94318.0,94317.0,2.94857516]
[1739901618619,4.59684932,94318.0,94317.0,2.94857516]
[1739901618748,4.59684932,94318.0,94317.0,2.5521602]
[1739901618958,4.99234932,94318.0,94317.0,2.5521602]
[1739901619160,4.98534932,94318.0,94317.0,2.5521602]
[1739901619548,4.99234932,94318.0,94317.0,2.4326262]
[1739901619754,4.99234932,94318.0,94317.0,2.3728592]
[1739901620143,4.99234932,94318.0,94317.0,2.22246908]
[1739901620368,0.329051,94309.0,94308.0,4.02839621]
[1739901620578,5.8806906,94309.0,94308.0,4.02839621]
[1739901620786,6.52693103,94309.0,94308.0,4.02839621]
[1739901620986,6.59972655,94309.0,94308.0,4.02839621]
[1739901621213,6.52693103,94309.0,94308.0,4.02839621]
[1739901621655,6.53393103,94309.0,94308.0,4.0288365]
[1739901622479,6.59123103,94309.0,94308.0,3.55962602]
[1739901622697,6.59123103,94309.0,94299.0,5.11033876]
[1739901622698,0.5,94304.0,94299.0,5.11033876]
[1739901622903,0.31133864,94300.0,94299.0,4.43785876]
[1739901623112,5.37095559,94300.0,94299.0,4.43785876]
[1739901623325,5.48690314,94300.0,94299.0,3.60828195]
[1739901623528,5.52804178,94300.0,94299.0,3.28713303]
[1739901623744,5.39624178,94300.0,94299.0,2.52239928]
[1739901623967,5.36380178,94300.0,94299.0,2.20336574]
[1739901624173,5.36380178,94300.0,94299.0,1.8843356]
[1739901624372,5.49860178,94300.0,94299.0,1.21179819]
[1739901624582,5.10440178,94300.0,94299.0,1.21179819]
[1739901624787,5.09586135,94300.0,94299.0,1.21179819]
[1739901625017,5.10844535,94300.0,94299.0,1.21179819]
[1739901625236,4.31569864,94300.0,94299.0,1.21179819]
[1739901625445,4.05869864,94300.0,94299.0,1.19516619]
[1739901625650,0.49913864,94300.0,94299.0,1.27086619]
[1739901625860,0.49213864,94300.0,94299.0,1.27086619]
[1739901626476,0.52072264,94300.0,94299.0,1.27086619]
[1739901626681,0.49213864,94300.0,94299.0,1.19516619]
[1739901626870,0.71372264,94300.0,94299.0,1.19516619]
[1739901627218,0.74562964,94300.0,94299.0,1.19507561]
[1739901627414,0.79879235,94300.0,94299.0,1.19507561]
[1739901627692,0.80579235,94300.0,94299.0,1.19507561]
[1739901627889,0.79879235,94300.0,94299.0,1.19507561]
[1739901628292,0.8686324,94300.0,94299.0,1.19307561]
[1739901628421,1.1928324,94300.0,94299.0,1.19307561]
[1739901628628,1.3518984,94300.0,94299.0,0.82179961]
[1739901628826,6.4018984,94300.0,94299.0,0.82179961]
[1739901629236,6.6591504,94300.0,94299.0,0.50276947]
[1739901629443,6.6591504,94300.0,94299.0,0.18373933]
[1739901629641,0.329081,94291.0,94290.0,3.73729931]
[1739901629842,7.0293248,94291.0,94290.0,3.52401558]
[1739901630043,7.4417248,94291.0,94290.0,3.19049423]
[1739901630343,7.5535248,94291.0,94290.0,3.02972743]
[1739901630748,7.5535248,94291.0,94290.0,2.98098735]
[1739901630945,8.19486344,94291.0,94290.0,2.98098735]
[1739901631168,7.93256344,94291.0,94290.0,2.98098735]
[1739901631375,7.93256344,94291.0,94290.0,2.9500079]
[1739901631569,6.86217944,94291.0,94290.0,1.58016892]
[1739901631746,6.78149524,94291.0,94290.0,1.43822701]
[1739901632108,0.83862366,94282.0,94281.0,0.77631821]
[1739901632313,0.6318,94274.0,94273.0,3.92542076]
[1739901632519,2.05927312,94274.0,94273.0,1.1852818]
[1739901632700,0.49444578,94265.0,94264.0,2.86824015]
[1739901632921,8.21508583,94265.0,94264.0,1.80617006]
[1739901633234,8.21508583,94265.0,94264.0,1.24122554]
[1739901633235,6.67256583,94265.0,94264.0,1.24122554]
[1739901633444,6.67256583,94265.0,94264.0,1.03537153]
[1739901633445,6.64248583,94265.0,94264.0,1.03537153]
[1739901633651,6.64248583,94265.0,94255.0,4.49013471]
[1739901633652,0.7818,94256.0,94255.0,4.49013471]
[1739901633868,5.27523371,94256.0,94255.0,3.21777934]
[1739901634083,5.29416655,94256.0,94255.0,3.21777934]
[1739901634287,6.60238345,94256.0,94255.0,1.61363654]
[1739901634418,6.60238345,94256.0,94255.0,1.59208711]
[1739901634623,6.84045061,94256.0,94255.0,1.57304498]
[1739901634819,6.84045061,94256.0,94255.0,0.00304498]
[1739901635039,6.84045061,94256.0,94231.0,0.0002]
[1739901635040,0.39895214,94250.0,94231.0,0.0002]
[1739901635243,5.42895214,94250.0,94231.0,0.0002]
[1739901635493,5.9711,94250.0,94231.0,0.0002]
[1739901635868,0.7818,94247.0,94246.0,5.10194067]
[1739901636032,5.8348,94247.0,94246.0,4.78266607]
[1739901636241,5.90823551,94247.0,94246.0,4.46339486]
[1739901636448,5.90823551,94247.0,94246.0,4.04411686]
[1739901636654,6.36187823,94247.0,94246.0,3.72485585]
[1739901636852,6.37082649,94247.0,94246.0,3.51195285]
[1739901637053,6.3818781,94247.0,94246.0,2.65038985]
[1739901637257,6.3818781,94247.0,94246.0,2.33739524]
[1739901637619,6.50382649,94247.0,94246.0,2.12447724]
[1739901637821,6.52828178,94247.0,94246.0,2.10587874]
[1739901638035,0.2818,94238.0,94237.0,2.66383693]
[1739901638243,0.6318,94229.0,94228.0,5.22474994]
[1739901638459,2.85136069,94229.0,94228.0,3.65881811]
[1739901638660,3.53144069,94229.0,94228.0,1.7363246]
[1739901638867,7.23449972,94229.0,94228.0,1.45650778]
[1739901639080,0.72301074,94220.0,94219.0,4.72667733]
[1739901639295,2.11791844,94220.0,94219.0,3.23659739]
[1739901639528,3.58934286,94220.0,94219.0,3.21207123]
[1739901639776,4.05153672,94220.0,94219.0,3.05463457]
[1739901640056,3.90475075,94220.0,94219.0,1.5522305]
[1739901640349,3.86194836,94220.0,94219.0,1.06852511]
[1739901640598,3.84097075,94220.0,94219.0,0.99815481]
[1739901640858,4.92280418,94220.0,94219.0,0.98815481]
[1739901641113,4.98658418,94220.0,94219.0,0.06735481]
[1739901641345,0.3578533,94211.0,94210.0,5.26090367]
[1739901641558,4.76369335,94211.0,94210.0,5.26090367]
[1739901641755,5.38139335,94211.0,94210.0,5.26090367]
[1739901641970,5.38139335,94211.0,94210.0,5.15090367]
[1739901642176,6.46322678,94211.0,94210.0,5.13890367]
[1739901642387,6.48561894,94211.0,94210.0,5.11167755]
[1739901642596,6.54939894,94211.0,94210.0,5.038662]
[1739901642866,6.54939894,94211.0,94210.0,5.037962]
[1739901643042,7.26898992,94211.0,94210.0,4.94230747]
[1739901643242,7.77598992,94211.0,94210.0,4.85169825]
[1739901643569,7.71220992,94211.0,94210.0,4.85169825]
[1739901643743,7.71220992,94211.0,94210.0,4.79703936]
[1739901643957,7.68981776,94211.0,94210.0,4.79703936]
[1739901644208,7.71161226,94211.0,94210.0,4.79703936]
[1739901644440,7.68281776,94211.0,94210.0,4.69703936]
[1739901644653,7.68281776,94211.0,94210.0,4.66860542]
[1739901644854,7.66981776,94211.0,94210.0,4.66660542]
[1739901645213,7.71161226,94211.0,94210.0,4.65460542]
[1739901645393,7.70461226,94211.0,94210.0,4.62854098]
[1739901645596,7.68281776,94211.0,94210.0,4.19149084]
[1739901645793,0.6118,94202.0,94201.0,3.30852323]
[1739901645998,0.7818,94193.0,94192.0,5.32514603]
[1739901646201,1.69562634,94193.0,94192.0,4.45251463]
[1739901646542,5.49147362,94193.0,94192.0,2.44079502]
[1739901646777,1.84377362,94193.0,94182.0,0.00035253]
[1739901646976,0.92201023,94184.0,94183.0,3.85246714]
[1739901647203,4.88760165,94184.0,94183.0,1.09478257]
[1739901647337,2.29655828,94184.0,94183.0,1.02940265]
[1739901647740,0.19558,94175.0,94174.0,3.98061934]
[1739901647932,5.30113523,94175.0,94174.0,3.22751034]
[1739901648134,6.22344425,94175.0,94174.0,3.22751034]
[1739901648496,6.58954812,94175.0,94174.0,3.22736329]
[1739901648723,6.03314812,94175.0,94174.0,3.16889429]
[1739901648863,6.68314812,94175.0,94174.0,3.11218229]
[1739901649074,6.68314812,94175.0,94174.0,3.01218229]
[1739901649288,7.00586812,94175.0,94174.0,3.01218229]
[1739901649486,8.08770155,94175.0,94174.0,2.77197165]
[1739901649689,8.08770155,94175.0,94174.0,2.53403689]
[1739901649885,8.49410155,94175.0,94174.0,2.53403689]
[1739901650087,8.51775697,94175.0,94174.0,2.50851469]
[1739901650292,8.51775697,94175.0,94174.0,2.50751469]
[1739901650544,8.54972897,94175.0,94174.0,2.49751469]
[1739901651083,8.61350897,94175.0,94174.0,2.37411934]
[1739901651333,9.14350897,94175.0,94174.0,2.27411934]
[1739901651559,9.14350897,94175.0,94174.0,1.85737934]
[1739901651560,9.15050897,94175.0,94174.0,1.85737934]
[1739901651720,7.84292897,94175.0,94174.0,1.14726934]
[1739901651906,7.84292897,94175.0,94174.0,1.04726934]
[1739901651907,5.55806649,94175.0,94174.0,1.04726934]
[1739901652115,5.15556649,94175.0,94174.0,0.94726934]
[1739901652318,3.78576649,94175.0,94174.0,0.94726934]
[1739901652543,3.58706649,94175.0,94174.0,0.94726934]
[1739901652744,3.55509449,94175.0,94174.0,0.94717871]
[1739901652942,3.56209449,94175.0,94174.0,0.94717871]
[1739901653266,3.55509449,94175.0,94174.0,0.94717871]
[1739901653479,3.05509449,94175.0,94174.0,0.9470881]
[1739901653603,3.17909449,94175.0,94174.0,0.9470881]
[1739901654283,2.99069449,94175.0,94174.0,0.9470881]
[1739901654576,2.99769449,94175.0,94174.0,0.9470881]
[1739901654709,3.45633454,94175.0,94174.0,0.9470881]
[1739901654909,3.55398576,94175.0,94174.0,1.0280881]
[1739901655112,2.55688133,94175.0,94174.0,0.1868681]
[1739901655364,2.54988133,94175.0,94174.0,0.1868681]
[1739901655765,2.70688133,94175.0,94174.0,0.1868681]
[1739901655938,2.53323011,94175.0,94174.0,0.1868681]
[1739901656135,2.27623011,94175.0,94174.0,0.1868681]
[1739901656409,2.28323011,94175.0,94174.0,0.1868681]
[1739901656792,2.12395311,94175.0,94174.0,0.1868681]
[1739901657019,2.27395311,94175.0,94174.0,0.1868681]
[1739901657855,2.27395311,94175.0,94174.0,0.1870384]
[1739901658004,2.26695311,94175.0,94174.0,0.1870384]
[1739901658415,2.27395311,94175.0,94174.0,0.1870384]
[1739901658617,2.26695311,94175.0,94174.0,0.1870384]
[1739901658815,0.15,94174.0,94165.0,5.71009839]
[1739901659022,0.15,94172.0,94165.0,5.71009839]
[1739901659225,0.00132792,94171.0,94165.0,5.71009839]
[1739901659425,0.65,94166.0,94165.0,5.71009839]
[1739901659626,1.2156,94166.0,94165.0,5.71009839]
[1739901660221,1.2156,94166.0,94165.0,5.70209839]
[1739901660421,6.2733,94166.0,94165.0,5.70209839]
[1739901660846,3.8621,94166.0,94165.0,5.70209839]
[1739901661023,2.2146,94166.0,94165.0,5.70209839]
[1739901661376,0.8437,94166.0,94165.0,5.69709839]
[1739901661583,0.5272,94166.0,94165.0,5.69709839]
[1739901661768,0.5272,94166.0,94165.0,5.05762839]
[1739901661769,0.3772,94166.0,94165.0,5.05762839]
[1739901661926,0.52979098,94166.0,94165.0,5.05762839]
[1739901662370,0.52979098,94166.0,94165.0,5.20812839]
[1739901662609,0.40869098,94166.0,94165.0,5.22812839]
[1739901662811,0.2641,94166.0,94165.0,5.24812839]
[1739901662993,0.136,94166.0,94165.0,5.24803774]
[1739901663197,0.14432761,94166.0,94165.0,5.22803774]
[1739901663437,0.13732761,94166.0,94165.0,5.22803774]
[1739901663650,0.13732761,94166.0,94165.0,5.02343874]
[1739901663852,0.14432761,94166.0,94165.0,5.01661874]
[1739901664470,0.70664005,94166.0,94165.0,5.01661874]
[1739901664681,0.55664005,94166.0,94165.0,5.07961874]
[1739901665089,0.87384005,94166.0,94165.0,5.07961874]
[1739901665540,0.89748806,94166.0,94165.0,5.07961874]
[1739901666092,1.04048806,94166.0,94165.0,5.07961874]
[1739901666302,1.04048806,94166.0,94165.0,5.01661874]
[1739901666933,1.04748806,94166.0,94165.0,5.01661874]
[1739901667299,1.18219154,94166.0,94165.0,4.76661874]
[1739901667525,3.51008806,94166.0,94165.0,4.76661874]
[1739901667751,2.04498806,94166.0,94165.0,4.76661874]
[1739901667985,1.04748806,94166.0,94165.0,4.76661874]
[1739901668157,1.04048806,94166.0,94165.0,4.76661874]
[1739901668375,1.04748806,94166.0,94165.0,4.76661874]
[1739901668698,1.04048806,94166.0,94165.0,4.76661874]
[1739901668901,1.04748806,94166.0,94165.0,4.76661874]
[1739901669108,1.03084005,94166.0,94165.0,4.76661874]
[1739901669316,0.87384005,94166.0,94165.0,4.76661874]
[1739901669738,0.88084005,94166.0,94165.0,4.76661874]
[1739901669940,1.02384005,94166.0,94165.0,4.76661874]
[1739901670792,5.92554005,94166.0,94165.0,4.76661874]
[1739901670994,7.60314005,94166.0,94165.0,4.76661874]
[1739901671207,5.89204353,94166.0,94165.0,4.76661874]
[1739901671350,5.94144353,94166.0,94165.0,4.76678904]
[1739901671550,5.94878413,94166.0,94165.0,4.76678904]
[1739901671810,5.96478413,94166.0,94165.0,4.76678904]
[1739901672017,5.35658413,94166.0,94165.0,4.76678904]
[1739901672242,5.48161616,94166.0,94165.0,4.76678904]
[1739901672445,5.47461616,94166.0,94165.0,4.76678904]
[1739901672601,5.50429518,94166.0,94165.0,4.76678904]
[1739901672806,1.02214037,94166.0,94165.0,4.53272789]
[1739901673073,1.01514037,94166.0,94165.0,4.52272789]
[1739901673279,6.33828837,94166.0,94165.0,3.07868952]
[1739901673483,6.33828837,94166.0,94156.0,3.64898189]
[1739901673484,0.7618,94157.0,94156.0,3.64898189]
[1739901673634,2.91064098,94157.0,94156.0,3.56998189]
[1739901674000,9.17073356,94157.0,94156.0,3.53444021]
[1739901674227,9.20814258,94157.0,94156.0,3.53342121]
[1739901674443,0.15,94154.0,94150.0,0.01485455]
[1739901674652,0.7848,94148.0,94147.0,5.77498015]
[1739901674859,2.5188,94148.0,94147.0,5.56709615]
[1739901675059,2.83510125,94148.0,94147.0,5.56709615]
[1739901675171,5.13288125,94148.0,94147.0,5.16229435]
[1739901675386,5.13288125,94148.0,94147.0,5.09568758]
[1739901675588,5.13288125,94148.0,94147.0,4.98718884]
[1739901675788,3.41554193,94148.0,94147.0,2.81898884]
[1739901675990,3.35176193,94148.0,94147.0,2.74348633]
[1739901676194,3.35176193,94148.0,94147.0,2.70955591]
[1739901676195,4.91866805,94148.0,94147.0,2.70955591]
[1739901676400,6.65266805,94148.0,94147.0,2.70955591]
[1739901676614,6.69263092,94148.0,94147.0,2.70955591]
[1739901676819,6.65858241,94148.0,94147.0,2.70955591]
[1739901677032,6.17600358,94148.0,94147.0,2.70955591]
[1739901677242,6.57222246,94148.0,94147.0,2.70955591]
[1739901677453,6.15858241,94148.0,94147.0,2.67138796]
[1739901677657,4.05352644,94148.0,94147.0,2.67138796]
[1739901677867,4.78784742,94148.0,94147.0,2.67138796]
[1739901678108,3.32251771,94148.0,94147.0,2.65472129]
[1739901678340,5.18219914,94148.0,94147.0,2.54472129]
[1739901678599,5.16477797,94148.0,94147.0,2.54463062]
[1739901678808,5.17997797,94148.0,94147.0,2.54463062]
[1739901679440,5.47161797,94148.0,94147.0,2.54463062]
[1739901679566,5.47161797,94148.0,94147.0,2.53463062]
[1739901679769,5.26057797,94148.0,94147.0,2.53463062]
[1739901680089,5.27723802,94148.0,94147.0,2.53463062]
[1739901680296,5.26057797,94148.0,94147.0,2.16797078]
[1739901680732,5.26057797,94148.0,94147.0,2.16597078]
[1739901680934,5.28357797,94148.0,94147.0,2.16597078]
[1739901681281,5.39537797,94148.0,94147.0,2.15597078]
[1739901681412,5.39537797,94148.0,94147.0,2.07224664]
[1739901682179,5.28684876,94148.0,94147.0,2.07224664]
[1739901682404,5.30919128,94148.0,94147.0,1.97224664]
[1739901682588,5.30919128,94148.0,94147.0,1.86224664]
[1739901682924,5.15919128,94148.0,94147.0,1.86224664]
[1739901683147,5.15919128,94148.0,94147.0,1.65224664]
[1739901683148,4.93809998,94148.0,94147.0,1.65224664]
[1739901683566,5.31172919,94148.0,94147.0,1.65224664]
[1739901683769,9.43142919,94148.0,94147.0,1.65169929]
[1739901683968,9.40908667,94148.0,94147.0,1.65169929]
[1739901684195,9.40908667,94148.0,94147.0,1.44169929]
[1739901684446,7.74268667,94148.0,94147.0,1.44169929]
[1739901684605,7.82018667,94148.0,94147.0,1.23186959]
[1739901684784,6.08652727,94148.0,94147.0,1.23186959]
[1739901684984,7.87441857,94148.0,94147.0,1.23186959]
[1739901685588,6.14041857,94148.0,94147.0,1.23186959]
[1739901685792,7.87441857,94148.0,94147.0,0.98186959]
[1739901685999,6.20419857,94148.0,94147.0,0.91801959]
[1739901686195,7.93819857,94148.0,94147.0,0.81801959]
[1739901686401,7.91519857,94148.0,94147.0,0.81801959]
[1739901686645,7.91519857,94148.0,94147.0,0.76091335]
[1739901686854,0.443116,94139.0,94138.0,5.65448683]
[1739901687058,6.5901507,94139.0,94138.0,5.65448683]
[1739901687468,6.5901507,94139.0,94138.0,5.43169983]
[1739901687868,6.96907187,94139.0,94138.0,5.43169983]
[1739901688092,6.38621265,94139.0,94138.0,5.4206307]
[1739901688503,6.41820265,94139.0,94138.0,5.4056307]
[1739901688718,6.55780265,94139.0,94138.0,5.4056307]
[1739901689169,7.08018949,94139.0,94138.0,5.4056307]
[1739901689365,7.30233674,94139.0,94138.0,5.38824367]
[1739901690145,7.29670718,94139.0,94138.0,5.38824367]
[1739901690348,7.29670718,94139.0,94138.0,5.38654367]
[1739901690773,7.32316511,94139.0,94138.0,5.38654367]
[1739901691574,7.09466394,94139.0,94138.0,5.09390017]
[1739901691777,7.09466394,94139.0,94138.0,5.02848186]
[1739901692002,7.09466394,94139.0,94138.0,4.94083013]
[1739901692239,7.10843347,94139.0,94138.0,4.94083013]
[1739901692593,7.10843347,94139.0,94138.0,4.9214909]
[1739901693401,7.10843347,94139.0,94138.0,4.9145909]
[1739901693603,7.08197554,94139.0,94138.0,4.9145909]
[1739901693807,7.08197554,94139.0,94138.0,4.84458381]
[1739901694203,2.74607554,94139.0,94138.0,4.84458381]
[1739901694552,7.80377554,94139.0,94138.0,4.73828381]
[1739901694972,7.7887887,94139.0,94138.0,4.70701522]
[1739901695302,7.9002887,94139.0,94138.0,4.68541522]
[1739901695688,8.28901917,94139.0,94138.0,4.68541522]
[1739901695883,8.38461828,94139.0,94138.0,4.68541522]
[1739901696109,7.86651917,94139.0,94138.0,4.68541522]
[1739901696246,7.88890601,94139.0,94138.0,4.68181522]
[1739901696813,7.82517101,94139.0,94138.0,4.67911522]
[1739901697224,7.82517101,94139.0,94138.0,4.67928552]
[1739901697428,7.83617012,94139.0,94138.0,4.67928552]
[1739901698052,7.7138192,94139.0,94138.0,4.67928552]
[1739901698274,8.19572009,94139.0,94138.0,4.66928552]
[1739901698417,8.2138192,94139.0,94138.0,4.46928552]
[1739901698823,8.2138192,94139.0,94138.0,4.36928552]
[1739901699023,8.20282009,94139.0,94138.0,4.36928552]
[1739901699365,8.20282009,94139.0,94138.0,4.26678552]
[1739901699366,7.91394009,94139.0,94138.0,4.26678552]
[1739901699553,7.91394009,94139.0,94138.0,4.16678552]
[1739901699752,7.91394009,94139.0,94138.0,4.05678552]
[1739901699952,7.78144009,94139.0,94138.0,4.05678552]
[1739901700205,7.79669578,94139.0,94138.0,4.04012231]
[1739901700447,7.98255262,94139.0,94138.0,4.04012231]
[1739901700632,7.98255262,94139.0,94138.0,3.94012231]
[1739901700865,7.98255262,94139.0,94138.0,3.93802924]
[1739901701108,7.98255262,94139.0,94138.0,3.92802924]
[1739901701320,8.48255262,94139.0,94138.0,3.92802924]
[1739901701736,8.56443173,94139.0,94138.0,3.67802924]
[1739901702034,8.58710999,94139.0,94138.0,3.33790036]
[1739901702244,8.58710999,94139.0,94138.0,3.12001636]
[1739901702450,8.50065173,94139.0,94138.0,3.11921636]
[1739901702793,8.48958448,94139.0,94138.0,3.11921636]
[1739901703222,10.08413536,94139.0,94138.0,3.00921636]
[1739901703392,10.10681362,94139.0,94138.0,2.46351785]
[1739901703602,10.17059362,94139.0,94138.0,2.46351785]
[1739901703759,10.17059362,94139.0,94138.0,2.35957585]
[1739901703961,9.87119362,94139.0,94138.0,1.39627585]
[1739901704164,7.79759362,94139.0,94131.0,0.0005]
[1739901704545,7.79759362,94139.0,94100.0,0.0155691]
[1739901704546,0.90219095,94130.0,94129.0,5.72885365]
[1739901704722,0.90219095,94130.0,94129.0,5.63305052]
[1739901704923,4.43289095,94130.0,94129.0,5.63305052]
[1739901705123,1.98841095,94130.0,94129.0,5.63305052]
[1739901705338,4.69611095,94130.0,94129.0,5.63305052]
[1739901705573,1.98841095,94130.0,94129.0,5.63305052]
[1739901705798,4.73018499,94130.0,94129.0,5.63305052]
[1739901706039,2.02248499,94130.0,94129.0,5.63305052]
[1739901706204,2.10865183,94130.0,94129.0,5.63305052]
[1739901706410,5.61148526,94130.0,94129.0,5.62305052]
[1739901706544,8.83190271,94130.0,94129.0,5.62305052]
[1739901706751,7.09790271,94130.0,94129.0,5.62305052]
[1739901707171,7.09790271,94130.0,94129.0,5.52305052]
[1739901707380,7.09790271,94130.0,94129.0,5.25638316]
[1739901707804,7.09790271,94130.0,94129.0,5.25138316]
[1739901708749,7.09790271,94130.0,94129.0,5.24628085]
[1739901709123,7.15240271,94130.0,94129.0,5.24645115]
[1739901709308,7.38395182,94130.0,94129.0,5.24645115]
[1739901709492,5.78940094,94130.0,94129.0,5.14015115]
[1739901710102,5.38540094,94130.0,94129.0,5.03015115]
[1739901710307,5.25240094,94130.0,94129.0,5.03015115]
[1739901710590,5.18862094,94130.0,94129.0,5.01335115]
[1739901710787,5.20528764,94130.0,94129.0,5.01335115]
[1739901711171,5.26906764,94130.0,94129.0,5.01335115]
[1739901711332,5.25240094,94130.0,94129.0,4.98005115]
[1739901711734,6.98640094,94130.0,94129.0,4.97005115]
[1739901711960,6.98640094,94130.0,94129.0,4.95185115]
[1739901712160,6.98640094,94130.0,94129.0,4.95085115]
[1739901712474,6.98640094,94130.0,94129.0,4.85085115]
[1739901712673,7.46890094,94130.0,94129.0,4.82185115]
[1739901712877,9.11795182,94130.0,94129.0,4.82185115]
[1739901713077,8.40675182,94130.0,94129.0,4.82185115]
[1739901713683,6.81220094,94130.0,94129.0,4.81185115]
[1739901714002,7.00542094,94130.0,94129.0,4.81185115]
[1739901714204,6.65392271,94130.0,94129.0,4.81185115]
[1739901714408,7.15392271,94130.0,94129.0,4.81185115]
[1739901714573,6.82972271,94130.0,94129.0,4.81185115]
[1739901714785,6.67972271,94130.0,94129.0,4.81185115]
[1739901715608,6.17972271,94130.0,94129.0,4.75184889]
[1739901715814,6.84638768,94130.0,94129.0,4.74184889]
[1739901716233,8.30751364,94130.0,94129.0,4.82014889]
[1739901716437,3.13952529,94130.0,94129.0,4.86814889]
[1739901716638,3.60463642,94130.0,94129.0,4.88814889]
[1739901716853,2.94026032,94130.0,94129.0,4.90814889]
[1739901717049,2.90096987,94130.0,94129.0,4.90814889]
[1739901717257,2.56186987,94130.0,94129.0,4.78184889]
[1739901717466,2.17086987,94130.0,94129.0,4.78184889]
[1739901718298,1.8852266,94130.0,94129.0,4.78184889]
[1739901718525,1.8852266,94130.0,94129.0,4.78084889]
[1739901719138,1.5979746,94130.0,94129.0,4.78084889]
[1739901719416,2.0663466,94130.0,94129.0,4.78084889]
[1739901719628,2.2735466,94130.0,94129.0,4.78084889]
[1739901720408,2.29020216,94130.0,94129.0,4.78084889]
[1739901720601,1.91370907,94130.0,94129.0,4.80384889]
[1739901720834,2.29020216,94130.0,94129.0,4.78084889]
[1739901721208,3.35585376,94130.0,94129.0,4.78084889]
[1739901721405,3.35587236,94130.0,94129.0,4.78084889]
[1739901721632,3.35587236,94130.0,94129.0,4.76084889]
[1739901721839,3.45001454,94130.0,94129.0,4.78084889]
[1739901722391,3.43335898,94130.0,94129.0,4.78084889]
[1739901722594,2.36768878,94130.0,94129.0,4.78084889]
[1739901723223,2.12345423,94130.0,94129.0,4.82384889]
[1739901723633,2.12345423,94130.0,94129.0,4.84384889]
[1739901723966,1.79925423,94130.0,94129.0,4.84384889]
[1739901724171,1.38865423,94130.0,94129.0,4.94635254]
[1739901724546,0.97615423,94130.0,94129.0,4.84384889]
[1739901724762,0.93111744,94130.0,94129.0,4.99384889]
[1739901725394,0.94776957,94130.0,94129.0,4.99384889]
[1739901725601,0.53412952,94130.0,94129.0,4.99384889]
[1739901726546,0.51747739,94130.0,94129.0,4.97084889]
[1739901726752,0.93111744,94130.0,94129.0,4.80084889]
[1739901726958,1.99644834,94130.0,94129.0,4.82084889]
[1739901727182,1.90264676,94130.0,94129.0,4.82084889]
[1739901727398,1.90264676,94130.0,94129.0,4.92366165]
[1739901727600,0.83731586,94130.0,94129.0,4.84384889]
[1739901727922,0.62619586,94130.0,94129.0,4.84384889]
[1739901728121,0.21255581,94130.0,94129.0,4.84384889]
[1739901728400,0.3580489,94130.0,94129.0,4.99384889]
[1739901728859,0.13487413,94130.0,94129.0,5.09635254]
[1739901729066,0.13487413,94130.0,94129.0,5.07968587]
[1739901729639,0.26814696,94134.0,94133.0,0.08]
[1739901729793,0.00078138,94139.0,94138.0,0.253]
[1739901729988,0.0003406,94148.0,94147.0,0.253]
[1739901730200,0.0003406,94148.0,94147.0,0.27842612]
[1739901730619,0.22682722,94156.0,94155.0,0.08]
[1739901730821,0.22682722,94156.0,94155.0,0.253]
[1739901731048,0.3242,94216.0,94148.0,0.51289219]
[1739901731049,0.3242,94216.0,94165.0,0.253]
[1739901731269,0.25470291,94218.0,94217.0,0.04]
[1739901731474,0.75867005,94218.0,94217.0,0.04]
[1739901731682,1.59841249,94218.0,94217.0,0.04]
[1739901731884,1.75583494,94218.0,94215.0,0.33989219]
[1739901732495,1.75302225,94218.0,94215.0,0.34001831]
[1739901732902,1.73637981,94218.0,94215.0,0.34001831]
[1739901733108,1.73637981,94218.0,94215.0,0.36001831]
[1739901733316,1.73637981,94218.0,94217.0,0.04]
[1739901733317,1.48448959,94218.0,94217.0,0.04]
[1739901733523,0.86858959,94218.0,94217.0,0.04]
[1739901733724,0.66138959,94218.0,94217.0,0.063]
[1739901734594,0.47714696,94218.0,94217.0,0.063]
[1739901734821,0.47714696,94218.0,94217.0,0.10330183]
[1739901735005,0.26614696,94218.0,94217.0,0.10330183]
[1739901735205,0.26614696,94218.0,94217.0,0.063]
[1739901735992,0.26614696,94218.0,94217.0,0.3027]
[1739901736234,0.0003406,94225.0,94224.0,0.063]
[1739901736454,0.0003406,94225.0,94224.0,0.06365224]
[1739901737145,0.0003406,94225.0,94224.0,0.063]
[1739901737327,0.0003406,94225.0,94224.0,0.043]
[1739901737659,0.0003406,94225.0,94224.0,0.09192281]
[1739901737868,0.0003406,94225.0,94224.0,0.09192238]
[1739901738065,0.0003406,94225.0,94224.0,0.24192238]
[1739901738274,0.01663298,94253.0,94252.0,0.063]
[1739901738493,0.0003406,94261.0,94260.0,0.04]
[1739901738706,0.0003406,94261.0,94260.0,0.06365137]
[1739901738906,0.0003406,94261.0,94260.0,0.063]
[1739901739668,0.00078193,94261.0,94260.0,0.063]
[1739901740081,0.0174111,94261.0,94260.0,0.063]
[1739901740276,0.0174111,94261.0,94260.0,0.0603855]
[1739901740818,0.0174111,94261.0,94260.0,0.0403855]
[1739901741037,0.0174111,94261.0,94260.0,0.04]
[1739901741241,0.0174111,94261.0,94260.0,0.02]
[1739901741499,0.0174111,94261.0,94260.0,0.04]
[1739901742471,0.0174111,94261.0,94260.0,0.02]
[1739901742473,1.0813849,94261.0,94260.0,0.02]
[1739901742681,0.2449111,94261.0,94255.0,0.35989219]
[1739901742913,0.00132624,94260.0,94255.0,0.33989219]
[1739901743184,0.00132628,94259.0,94245.0,0.33989219]
[1739901743446,0.05376093,94258.0,94233.0,0.02]
[1739901743705,0.00132659,94257.0,94237.0,0.33989219]
[1739901743966,0.18424263,94256.0,94247.0,0.33989219]
[1739901744217,0.18424263,94256.0,94255.0,0.02]
[1739901744500,0.18424263,94256.0,94255.0,0.063]
[1739901745237,0.22828193,94261.0,94260.0,0.04]